Cogmind - Beta 12 @@@ ROGUE MODE // 2023.08.16 @ 00:47:18 Player: AAAAAAAAAAAAAAAA Result: Self-destructed Performance ------------- Evolutions (2) 1000 Regions Visited (3) 600 Robots Destroyed (40) 200 Value Destroyed (1119) 1119 Prototype IDs (2) 40 Alien Tech Used (0) 0 Bonus (0) 0 TOTAL SCORE: 2959 Bonus ------- None Cogmind --------- Core Integrity 515/550 Matter 300/300 Energy 160/160 System Corruption 0% Temperature Cool (0) Movement Rolling (110) Ox2 Location -8/Materials Parts ------- > --- POWER (1) -------- Light Nuclear Core > --- PROPULSION (2) --- Wheel > --- UTILITY (6) ------ Medium Storage Unit Seismic Detector Weapon Shielding Weapon Shielding Weapon Shielding > --- WEAPON (2) ------- Mace Katana > --- INVENTORY (10) --- Aluminum Leg Heat Sink Terrain Scanner Weapon Shielding Weapon Shielding Weapon Shielding Small Laser Small Laser Assault Rifle Assault Rifle Peak State ------------ > --- POWER ------------ Light Nuclear Core > --- PROPULSION ------- Aluminum Leg Wheel > --- UTILITY ---------- Medium Storage Unit Seismic Detector Weapon Shielding Weapon Shielding Weapon Shielding Medium Armor Plating > --- WEAPON ----------- Mace Katana > --- INVENTORY -------- Heat Sink Terrain Scanner Weapon Shielding Weapon Shielding Weapon Shielding Small Laser Small Laser Assault Rifle Assault Rifle [Rating: 17] Favorites ----------- Power Ion Engine Engine Ion Engine Power Core Light Nuclear Core Propulsion Aluminum Leg Leg Aluminum Leg Wheel Wheel Utility Large Storage Unit Device Seismic Detector Storage Large Storage Unit Protection Weapon Shielding Weapon Katana Energy Gun Small Laser Ballistic Gun Assault Rifle Launcher Grenade Launcher Impact Weapon Mace Slashing Weapon Katana Build | -11 -10 -9 -8 ------- Run | Jun Mat Mat Mat Slots Evolved 4 | . . 2 2 Power . | . . . . Propulsion . | . . . . Utility 4 | . . 2 2 Weapon . | . . . . Parts Attached 30 | 6 3 16 5 Power 4 | 1 . 3 . Engine 3 | 1 . 2 . Core 1 | . . 1 . Reactor . | . . . . Propulsion 6 | 2 . 2 2 Treads . | . . . . Leg 3 | . . 2 1 Wheel 3 | 2 . . 1 Hover . | . . . . Flight . | . . . . Utility 14 | 1 2 8 3 Device 4 | . 1 3 . Storage 3 | 1 1 1 . Processor . | . . . . Hackware . | . . . . Protection 7 | . . 4 3 Artifact . | . . . . Weapon 6 | 2 1 3 . Energy Gun 2 | 1 1 . . Energy Cannon . | . . . . Ballistic Gun 1 | 1 . . . Ballistic Cannon . | . . . . Launcher 1 | . . 1 . Special Weapon . | . . . . Impact Weapon 1 | . . 1 . Slashing Weapon 1 | . . 1 . Piercing Weapon . | . . . . Special Melee Weapon . | . . . . Unidentified Prototypes . | . . . . Parts Lost 13 | . 1 10 2 Power 3 | . 1 2 . Propulsion 4 | . . 3 1 Utility 5 | . . 4 1 Weapon 1 | . . 1 . Highest Loss Streak 3 | . 1 3 1 To Critical Strikes . | . . . . Average Slot Usage (%) 88 | . 98 86 88 Engine 7 | . 12 7 . Core 3 | . . 2 9 Leg 11 | . . 16 5 Wheel 7 | . 28 2 3 Device 16 | . 13 19 9 Storage 11 | . 14 11 9 Protection 10 | . . 7 34 Energy Gun 3 | . 14 1 . Ballistic Gun 3 | . 14 1 . Impact Weapon 5 | . . 5 9 Slashing Weapon 7 | . . 9 9 Naked Turns . | . . . . Heaviest Build 37 | 11 27 37 30 Greatest Support 26 | 26 26 26 10 Greatest Overweight (x) 9 | . 1 3 9 Average Overweight (x) 1 | . . 1 2 Largest Inventory Capacity 15 | 8 15 15 10 Average Capacity 13 | 6 14 14 10 Most Carried 10 | 4 9 9 10 Average Carried 7 | 1 6 7 9 Final Capacity 15 | 8 15 10 10 Final Carried 10 | 4 9 6 10 Class Distribution -------------------- 100% | Mutant Dominant Class ---------------- Mutant | -10/Materials Mutant | -9/Materials Mutant | -8/Materials Resources | -11 -10 -9 -8 ----------- Run | Jun Mat Mat Mat Matter Collected 591 | 213 158 155 65 Remotely . | . . . . Salvage Created 1465 | . 332 955 178 Parts 82 | . 18 56 8 Haulers Intercepted 3 | . 1 1 1 Recyclers Shooed 1 | . . 1 . Parts Field Recycled . | . . . . Retrieved Matter . | . . . . Parts Self-Destructed . | . . . . Prevented . | . . . . Kills | -11 -10 -9 -8 ------- Run | Jun Mat Mat Mat Combat Hostiles Destroyed 29 | . 7 20 2 Melee 12 | . . 10 2 Guns 8 | . 7 1 . AOE 4 | . . 4 . Classes Destroyed 10 | . 2 6 2 Worker 2 | . . 1 1 Tunneler 1 | . . . 1 Hauler 3 | . 1 1 1 Recycler 2 | . . 2 . Operator 1 | . . 1 . Watcher 2 | . . 2 . Swarmer 3 | . . 3 . Grunt 21 | . 7 13 1 Sentry 4 | . . 4 . Hunter 1 | . . . 1 Best Kill Streak 4 | . 2 4 2 Combat Bots Only 4 | . 2 4 1 Max Kills in Single Turn 2 | . 1 2 1 Gunslinging . | . . . . Exploded 2 | . . 2 . Melee 1 | . . 1 1 Uniques/NPCs Destroyed . | . . . . Combat | -11 -10 -9 -8 -------- Run | Jun Mat Mat Mat Damage Taken 1650 | . 292 1121 237 Core 248 | . 46 167 35 Absorbed by Shields . | . . . . Redirected to Shielding 5 | . . . 5 Core Remaining (%) 79 | 100 81 58 . Volleys Fired 33 | . 28 5 . Largest 2 | . 2 2 . Hottest 70 | . 60 70 . Shots Fired 66 | . 56 10 . Gun 63 | . 56 7 . Cannon . | . . . . Launcher 3 | . . 3 . Special . | . . . . Kinetic 30 | . 28 2 . Thermal 33 | . 28 5 . Explosive 3 | . . 3 . Electromagnetic . | . . . . Robot Hit Streak 9 | . 9 3 . Robot Miss Streak 4 | . 2 4 . Penetration Max . | . . . . Secondary Targets . | . . . . Shots Hit Robots 125 | . 44 67 14 Core Hits 45 | . 19 19 7 Critical Kills . | . . . . Critical Parts Destroyed 10 | . . 10 . Critical Strikes 12 | . . 11 1 Smash 10 | . . 10 . Sever 2 | . . 1 1 Melee Attacks 102 | . . 85 17 Impact 56 | . . 54 2 Slashing 46 | . . 31 15 Piercing . | . . . . Sneak Attacks 11 | . . 6 5 Combat Hostiles 1 | . . 1 . Follow-up Attacks 9 | . . 7 2 Damage Inflicted 3612 | . 512 2539 561 Guns 559 | . 512 47 . Cannons . | . . . . Explosions 337 | . . 337 . Melee 2716 | . . 2155 561 Ramming . | . . . . Kinetic 294 | . 270 24 . Thermal 265 | . 242 23 . Explosive 337 | . . 337 . Electromagnetic . | . . . . Impact 1555 | . . 1461 94 Slashing 1161 | . . 694 467 Piercing . | . . . . Highest Corruption . | . . . . Average Corruption . | . . . . Corruption Purged . | . . . . Corruption Blocked . | . . . . Overload Shots . | . . . . Overflow Damage 469 | . . 455 14 Projectiles . | . . . . Explosions 17 | . . 17 . Melee 452 | . . 438 14 Knockbacks 9 | . . 9 . Impact 8 | . . 8 . Kinetic . | . . . . Secondary 1 | . . 1 . Self-Inflicted Damage 2 | . . 2 . Shots 1 | . . 1 . Rammed . | . . . . Targets Rammed . | . . . . Kicked . | . . . . Crushed . | . . . . Highest Temperature 48 | . 48 4 . Average Temperature 19 | . 21 2 . Received Heat Transfer 690 | . 162 483 45 Siege Activations . | . . . . Robots Corrupted . | . . . . Combat Hostiles . | . . . . Parts Fried 12 | . . 12 . Impact Corruptions 22 | . . 22 . Robots Melted . | . . . . Combat Hostiles . | . . . . Parts Melted . | . . . . Heat Transferred 600 | . 550 50 . Parts Sabotaged . | . . . . Parts Stolen . | . . . . Parts Stripped . | . . . . Power Chain Reactions . | . . . . Missiles Intercepted . | . . . . Alert | -11 -10 -9 -8 ------- Run | Jun Mat Mat Mat Peak Influence 237 | . 165 237 88 Initial 16 | . . . 16 Average 66 | . 47 83 34 Maximum Alert Level 1 | . . 1 . Low Security (%) 93 | 100 100 90 100 Level 1 6 | . . 9 . Level 2 . | . . . . Level 3 . | . . . . Level 4 . | . . . . Level 5 . | . . . . High Security . | . . . . Max Security . | . . . . Squads Dispatched 5 | . 3 2 . Investigation 4 | . 2 2 . Extermination . | . . . . Reinforcement 1 | . 1 . . Assault . | . . . . Garrison . | . . . . Intercept . | . . . . Searches Triggered . | . . . . Construction Impeded . | . . . . Haulers Reinforced . | . . . . Active Scanning Responses . | . . . . Cargo Convoy Interrupts . | . . . . Stealth | -11 -10 -9 -8 --------- Run | Jun Mat Mat Mat Distress Signals 3 | . . 3 . Communications Jammed . | . . . . Distress Signals . | . . . . Times Spotted 51 | . 13 34 4 Peak Tracking Total 7 | . 4 7 2 Tactical Retreats 2 | . . 2 . Traps | -11 -10 -9 -8 ------- Run | Jun Mat Mat Mat Traps Triggered 2 | . 1 1 . Indirectly . | . . . . Trap Hack Attempts . | . . . . Triggered . | . . . . Disarmed . | . . . . Reprogrammed . | . . . . Reused . | . . . . Traps Extracted . | . . . . Installed . | . . . . Triggered . | . . . . Machines | -11 -10 -9 -8 ---------- Run | Jun Mat Mat Mat Machines Disabled . | . . . . Max in Single Turn . | . . . . Machines Repaired . | . . . . Machines Sabotaged . | . . . . Overloaded Fab Kills . | . . . . Hacking | -11 -10 -9 -8 --------- Run | Jun Mat Mat Mat Machines Accessed 9 | . 3 6 . Terminals 8 | . 2 6 . Fabricators . | . . . . Repair Stations . | . . . . Recycling Units 1 | . 1 . . Scanalyzers . | . . . . Garrison Access . | . . . . Total Hacks 27 | . 7 20 . Successful 12 | . 5 7 . Failed 15 | . 2 13 . Catastrophic 5 | . . 5 . Database Lockouts . | . . . . Manual 14 | . 2 12 . Terminals 26 | . 6 20 . Fabricators . | . . . . Repair Stations . | . . . . Recycling Units 1 | . 1 . . Scanalyzers . | . . . . Garrison Access . | . . . . Terminal Hacks 11 | . 4 7 . Prototype ID Bank 1 | . 1 . . Level Access Points 1 | . 1 . . Alert Level 1 | . . 1 . Unreport Threat 4 | . 1 3 . Recall Investigation 1 | . . 1 . Zone Layout 3 | . 1 2 . Fabricator Hacks . | . . . . Repair Station Hacks . | . . . . Recycling Unit Hacks 1 | . 1 . . Report Inventory 1 | . 1 . . Scanalyzer . | . . . . Garrison Access Hacks . | . . . . Unauthorized Hacks . | . . . . Terminals . | . . . . Fabricators . | . . . . Repair Stations . | . . . . Recycling Units . | . . . . Scanalyzers . | . . . . Garrison Access . | . . . . Data Cores Recovered . | . . . . Used . | . . . . Hacking Detections 8 | . 3 5 . Full Trace Events 3 | . 1 2 . Feedback Events . | . . . . Feedback Blocked . | . . . . Robot Schematics Acquired . | . . . . Robots Built . | . . . . Authchips . | . . . . Time . | . . . . Total Robot Build Rating . | . . . . Part Schematics Acquired . | . . . . Parts Built . | . . . . Authchips . | . . . . Time . | . . . . Total Part Build Rating . | . . . . Parts Repaired . | . . . . Time . | . . . . Parts Recycled . | . . . . Recycled Matter . | . . . . Retrieved Matter . | . . . . Retrieved Components . | . . . . Parts Scanalyzed . | . . . . Part Schematics Acquired . | . . . . Parts Damaged . | . . . . Bothacking | -11 -10 -9 -8 ------------ Run | Jun Mat Mat Mat Used RIF Installer . | . . . . Robots Hacked . | . . . . Non-combat . | . . . . Combat . | . . . . Robot Hacks Applied . | . . . . Relay Couplers Released . | . . . . Fabnet Peak Effective % . | . . . . Robots Rewired . | . . . . Allies Hacked . | . . . . Hacks Repelled . | . . . . Allies | -11 -10 -9 -8 -------- Run | Jun Mat Mat Mat Total Allies . | . . . . Largest Group . | . . . . Highest-Rated Group . | . . . . Highest-Rated Ally . | . . . . Total Orders . | . . . . Ally Attacks . | . . . . Total Damage . | . . . . Kills . | . . . . Allies Corrupted . | . . . . Allies Melted . | . . . . Intel | -11 -10 -9 -8 ------- Run | Jun Mat Mat Mat Robot Analysis Total . | . . . . Derelict Logs Recovered . | . . . . Drone Launches . | . . . . Drone Recoveries . | . . . . Exploration | -11 -10 -9 -8 ------------- Run | Jun Mat Mat Mat Turns Passed 2550 | 58 499 1596 397 Spaces Moved 1023 | 44 189 598 192 Core 3 | 1 . . 2 Treads . | . . . . Legs 558 | . . 481 77 Wheels 462 | 43 189 117 113 Hover . | . . . . Flight . | . . . . Fastest Speed 50 | 50 90 90 110 Average Speed 169 | 90 101 195 174 Slowest Speed 500 | 100 105 330 500 Overloaded Moves . | . . . . Propulsion Burnouts . | . . . . Robots Hopped . | . . . . Cave-ins Triggered . | . . . . Exploration Rate (%) 26 | 4 30 58 15 Regions Visited 3 Branch Regions . Pre-discovered Areas . | . . . . Known Exits Taken 1 | . 1 . . Unknown Exits Taken 2 | 1 . 1 . Scrap Searched . | . . . . Spaces Dug . | . . . . Terrain Destroyed 20 | . . 20 . Melee . | . . . . Projectile . | . . . . AOE 20 | . . 20 . Terrain Rammed . | . . . . Walls Destroyed . | . . . . Machines Disabled . | . . . . Actions | -11 -10 -9 -8 --------- Run | Jun Mat Mat Mat Total 1615 | 59 440 887 229 Wait 422 | 6 214 189 13 Move 1020 | 43 188 597 192 Hop . | . . . . Pick Up 12 | 4 4 1 3 Fast Attach 23 | 6 3 9 5 Attach 7 | . . 7 . Detach 7 | . 2 4 1 Swap . | . . . . Drop 2 | . 1 1 . Fire 33 | . 28 5 . Melee 89 | . . 74 15 Ram . | . . . . Kick . | . . . . Crush . | . . . . Escape Stasis . | . . . . Rewire . | . . . . Trap . | . . . . Miscellaneous . | . . . . Route ------- -11/Junkyard -10/Materials (discovered 4 exits: *Mat x3 / [*Min]) -9/Materials (discovered 3 exits: [*Mat x2] / [*Min]) -8/Materials History --------- Turn | Location | Event 12 | -11/Junkyard | Discovered new exit (range 16) 59 | -11/Junkyard | Entered Materials 281 | -10/Materials | Identified exit to Materials 301 | -10/Materials | Build established: Mutant 412 | -10/Materials | Discovered new exit (range 7) 558 | -10/Materials | Entered another Materials area 558 | -9/Materials | Evolved 2 slots: Utility x2 1115 | -9/Materials | Discovered new exit (range 16) 1274 | -9/Materials | Discovered new exit (range 16) 1737 | -9/Materials | Lost 3 parts (1p1n1u) 1937 | -9/Materials | Discovered new exit (range 12) 2154 | -9/Materials | Entered another Materials area 2154 | -8/Materials | Evolved 2 slots: Utility x2 2551 | -8/Materials | Self-destructed Last Messages --------------- 02360_ Destroyed Wheel. 02360_ Sneak attack on T-07 Excavator. 02360_ Mace follow-up attack on T-07 Excavator. 02360_ T-07 Excavator destroyed. 02364_ K-01 Serf collects debris. 02378_ Acquired 6 matter. 02388_ Sneak attack on K-01 Serf. 02388_ K-01 Serf destroyed. 02394_ Acquired Wheel. 02398_ Extracted 10 matter. 02410_ C-30 ARC bursts open, deploying its payload. 02450_ Penetrated by Slug. 02450_ Hadron Collector disabled. 02453_ Penetrated by Slug. 02461_ H-55 Commando destroyed. 02466_ Sneak attack on A-02 Transporter. 02466_ Mace follow-up attack on A-02 Transporter. 02476_ A-02 Transporter destroyed. 02550_ Slug penetrates Wall. 02550_ Med. Armor Plating destroyed. Map ----- +----------------------------------------------------+ | ?????????????????????????????????????????????????? | | ????????????????????#########????????????????????? | | ????????????????????# #????????????????????? | | ########????????????# / #????????????????????? | | # #?############ #????????????????????? | | # "" #?# + ! #????????????????????? | | # ""S #?# ######## # #????????????????????? | | # "" #?# #?????##+#########????????????????????? | | # =#?# #?????# * #????????????????????????? | | ?? ??# #?????# #????????????????????????? | | ####+##### ####### #????????????????????????? | | =*%[%*+ #????????????????????????? | | #### *[#### """" #????????????????????????? | | ???# """=*#??# """" #????????????????????????? | | ???# """ !#??########????????????????????????? | | ???# # """ #??????????????????????????????????? | | # #??????????????????????????????????? | | ! !#[ #??????????????????????????????????? | | #!!!!## #????###########???????????????????? | | #####?# ###### #???????????????????? | | ??????# * !%* !%+ #???????????????????? | | ??????####+######### #???????????????????? | | ???????# #????# #???????????????????? | | ???????# """ #????# #???????????????????? | | ???????# "R #????# #???????????????????? | | ???????# """ [#????# @ #???????????????????? | | ???????# "" #????# #???????????????????? | | ???????# #????########+##???????????????????? | | ???????########?????????? ???????????????????? | | ??????????????????????? ?????????????????? | | ????????????????????? ???????????????? | | ????????????????????#### #######+#?????????????? | | ???????????????????????# ???????? #????????????? | | ???????????????????????# ??????????????????????? | | ???????????????????????# ??????????????????????? | | ??????????????????????? ??????????????????????? | | ??????????????????????? ??????????????????????? | | ?????????????????????? ??????????????????????? | | ??????????????????????### #??????????????????????? | | ????????????????????????# ???????????????????????? | | ????????????????????????# ???????????????????????? | | ????????????????????????# ???????????????????????? | | ?????????????????????????????????????????????????? | | ?????????????????????????????????????????????????? | | ?????????????????????????????????????????????????? | | ?????????????????????????????????????????????????? | | ?????????????????????????????????????????????????? | | ?????????????????????????????????????????????????? | | ?????????????????????????????????????????????????? | | ?????????????????????????????????????????????????? | +----------------------------------------------------+ Best States ------------- Heat Dissipation 50 Energy Generation 14 Energy Capacity 250 Matter Stores 300 Matter Capacity 300 Sight Range 16 Terrain Scan Range 14 Terrain Scan Density 10 Armor Coverage 225 Weapon Shielding 33 Evasion (%) 42 Item Schematics ----------------- None Robot Schematics ------------------ None Fabricated ------------ Nothing Alien Tech Used ----------------- None Achievements -------------- None Challenges ------------ None Game ------ Seed FusionArchitectCannon Manual? 0 Play Time 00:18:51 Cumulative 53.4 hours Start 2023.08.16 @ 00:22:50 End 2023.08.16 @ 00:47:18 Sessions 1 Manual Loads 0 Difficulty Rogue Special Mode None Game No. 43 Rogue 38 Adventurer 5 Explorer 0 Win Type - Total 1 Types 1/0/0/0/0/0/0/0/0 Lore% 11 Gallery% 36 Achievement% 28 Wizard Run 0 Options --------- ASCII 0 Keyboard 1 Movement Numpad Keybinds 0 Fullscreen 2 Font 18/Terminus Map View 76x50 Tactical HUD 1 Map Filters NONE Filters NONE Steam 1 RUN: de32a536-9f60-4c2e-8e94-a23d65842741